fUST/lending_fUST_20260107
["ID","MTS","AMOUNT","RATE_DAILY","PERIOD"]
[400559637,1767718252200,-500.0,0.00034046,30]
[400559638,1767718252209,-187.78006525,0.00034046,30]
[400559639,1767718252219,-255.24985543,0.00034046,30]
[400559640,1767718252228,-250.0,0.00034046,30]
[400559641,1767718252237,-429.318,0.00034046,30]
[400559642,1767718252246,-151.0,0.00034046,30]
[400559643,1767718252255,-161.9011013,0.00034046,30]
[400559644,1767718252264,-269.27511332,0.00034046,30]
[400559645,1767718252273,-500.0,0.00034046,30]
[400559646,1767718252282,-445.202766,0.00034046,30]
[400559647,1767718252292,-151.0,0.00034046,30]
[400559648,1767718252303,-151.0,0.00034046,30]
[400559649,1767718252312,-151.0,0.00034046,30]
[400559650,1767718252349,-250.0,0.00034046,30]
[400559651,1767718252359,-461.67526834,0.00034046,30]
[400559652,1767718252368,-500.0,0.00034046,30]
[400559653,1767718252378,-151.0,0.00034046,30]
[400559654,1767718252387,-151.0,0.00034046,30]
[400559655,1767718252396,-151.0,0.00034046,30]
[400559656,1767718252406,-250.0,0.00034046,30]
[400559657,1767718252416,-500.0,0.00034046,30]
[400559658,1767718252425,-151.0,0.00034046,30]
[400559659,1767718252434,-478.75725327,0.00034046,30]
[400559660,1767718252444,-151.0,0.00034046,30]
[400559661,1767718252453,-151.0,0.00034046,30]
[400559662,1767718252463,-250.0,0.00034046,30]
[400559663,1767718252472,-500.0,0.00034046,30]
[400559664,1767718252482,-151.0,0.00034046,30]
[400559665,1767718252491,-496.47127164,0.00034046,30]
[400559666,1767718252500,-262.01339487,0.00034046,30]
[400559667,1767718252511,-151.0,0.00034046,30]
[400559668,1767718252522,-250.0,0.00034046,30]
[400559669,1767718252531,-500.0,0.00034046,30]
[400559670,1767718252541,-204.04740029,0.00034046,30]
[400559671,1767718252551,-341.97007495,0.00034046,30]
[400559672,1767718252561,-514.84070869,0.00034046,30]
[400559673,1767718252571,-250.0,0.00034046,30]
[400559674,1767718252580,-151.0,0.00034046,30]
[400559675,1767718252590,-250.0,0.00034046,30]
[400559676,1767718252600,-500.0,0.00034046,30]
[400559677,1767718252610,-533.88981491,0.00034046,30]
[400559678,1767718252620,-151.0,0.00034046,30]
[400559679,1767718252631,-250.0,0.00034046,30]
[400559680,1767718252643,-151.0,0.00034046,30]
[400559681,1767718252654,-250.0,0.00034046,30]
[400559682,1767718252664,-500.0,0.00034046,30]
[400559683,1767718252673,-553.64373807,0.00034046,30]
[400559684,1767718252683,-151.0,0.00034046,30]
[400559685,1767718252692,-250.0,0.00034046,30]
[400559686,1767718252702,-250.0,0.00034046,30]
[400559687,1767718252712,-151.0,0.00034046,30]
[400559688,1767718252721,-500.0,0.00034046,30]
[400559689,1767718252731,-574.12855637,0.00034046,30]
[400559690,1767718252741,-151.0,0.00034046,30]
[400559691,1767718252750,-250.0,0.00034046,30]
[400559692,1767718252760,-250.0,0.00034046,30]
[400559693,1767718252770,-429.89419342,0.00034046,30]
[400559694,1767718252779,-595.37131296,0.00034046,30]
[400559695,1767718252789,-151.0,0.00034046,30]
[400559696,1767718252798,-151.0,0.00034046,30]
[400559697,1767718252807,-250.0,0.00034046,30]
[400559698,1767718252816,-500.0,0.00034046,30]
[400559699,1767718252828,-617.40005154,0.00034046,30]
[400559700,1767718252837,-151.06919127,0.00034046,30]
[400559701,1767718252846,-250.0,0.00034046,30]
[400559702,1767718252855,-500.0,0.00034046,30]
[400559703,1767718252864,-640.24385345,0.00034046,30]
[400559704,1767718252874,-250.0,0.00034046,30]
[400559705,1767718252883,-500.0,0.00034046,30]
[400559706,1767718252892,-663.93287602,0.00034046,30]
[400559707,1767718252902,-250.0,0.00034046,30]
[400559708,1767718252912,-500.0,0.00034046,30]
[400559709,1767718252923,-250.0,0.00034046,30]
[400559710,1767718252934,-688.49839244,0.00034046,30]
[400559711,1767718252943,-2000.0,0.00034046,30]
[400559712,1767718252953,-500.0,0.00034046,30]
[400559713,1767718252962,-250.0,0.00034046,30]
[400559714,1767718252974,-2074.0,0.00034046,30]
[400559715,1767718252984,-500.0,0.00034046,30]
[400559716,1767718252994,-713.97283296,0.00034046,30]
[400559717,1767718253004,-250.0,0.00034046,30]
[400559718,1767718253014,-2150.738,0.00034046,30]
[400559719,1767718253023,-500.0,0.00034046,30]
[400559720,1767718253032,-740.38982778,0.00034046,30]
[400559721,1767718253042,-250.0,0.00034046,30]
[400559722,1767718253051,-160.0,0.00034046,30]
[400559723,1767718253060,-151.0,0.00034046,30]
[400559724,1767718253070,-2230.315306,0.00034046,30]
[400559725,1767718253079,-500.0,0.00034046,30]
[400559726,1767718253088,-767.7842514,0.00034046,30]
[400559727,1767718253097,-250.0,0.00034046,30]
[400559728,1767718253106,-160.0,0.00034046,30]
[400559729,1767718253116,-151.0,0.00034046,30]
[400559730,1767718253125,-500.0,0.00034046,30]
[400559731,1767718253134,-612.26145112,0.00034046,30]
[400559732,1767718253143,-329.95937148,0.00034046,30]
[400559733,1767718253152,-160.0,0.00034046,30]
[400559734,1767718253161,-151.0,0.00034046,30]
[400559735,1767718253172,-2312.83697232,0.00034046,30]
[400559736,1767718253182,-500.0,0.00034046,30]
[400559737,1767718253191,-2398.4119403,0.00034046,30]
[400559738,1767718253200,-312.0,0.00034046,30]
[400559739,1767718253209,-160.0,0.00034046,30]
[400559740,1767718253219,-151.0,0.00034046,30]
[400559741,1767718253228,-2487.15318209,0.00034046,30]
[400559742,1767718253237,-152.35382253,0.00034046,30]
[400559743,1767718253246,-151.0,0.00034046,30]
[400559744,1767718253256,-265.97969829,0.00034046,30]
[400559745,1767718253265,-2579.17784983,0.00034046,30]
[400559746,1767718253274,-2674.60743027,0.00034046,30]
[400559747,1767718253283,-2773.56790519,0.00034046,30]
[400559748,1767718253292,-2876.18991768,0.00034046,30]
[400559749,1767718253302,-2982.60894464,0.00034046,30]
[400559750,1767718253311,-3092.96547559,0.00034046,30]
[400559751,1767718253322,-3207.40519818,0.00034046,30]
[400559752,1767718253331,-3326.07919052,0.00034046,30]
[400559753,1767718253341,-3449.14412057,0.00034046,30]
[400559754,1767718253350,-3576.76245303,0.00034046,30]
[400559755,1767718253359,-3709.10266379,0.00034046,30]
[400559756,1767718253369,-3846.33946235,0.00034046,30]
[400559757,1767718253379,-3988.65402246,0.00034046,30]
[400559758,1767718253389,-1000.0,0.00034061,30]
[400559759,1767718253400,-1000.0,0.00034061,30]
[400559760,1767718253410,-579.0,0.00034061,30]
[400559761,1767718253421,-340.0,0.00034097,120]
[400559762,1767718253431,-739.3,0.000341,2]
[400559763,1767718253441,-151.0,0.00034132,14]
[400559764,1767718253452,-151.0,0.00034165,6]
[400559765,1767718253462,-1000.0,0.00034213,14]
[400559766,1767718253473,-11375.89682885,0.00034213,2]
[400559767,1767718253483,-896.69,0.00034246,36]
[400559768,1767718253492,-1825.86,0.00034246,120]
[400559769,1767718253503,-1500.0,0.000344,19]
[400559770,1767718253513,-176.0,0.00034411,69]
[400559771,1767718253524,-173.03,0.00034423,60]
[400559772,1767718253534,-1509.32,0.00034424,60]
[400559773,1767718253545,-159.49,0.00034455,60]
[400559774,1767718253555,-1524.77239444,0.00034455,60]
[400559775,1767718253566,-151.41,0.00034493,60]
[400559776,1767718253576,-600.0,0.000345,2]
[400559777,1767718253586,-270.0,0.00034521,5]
[400559778,1767718253596,-278.71322358,0.00034521,5]
[400559779,1767718253606,-173.03,0.00034523,60]
[400559780,1767718253616,-1509.32,0.00034524,60]
[400559781,1767718253627,-159.49,0.00034555,60]
[400559782,1767718253637,-528.0,0.00034555,30]
[400559783,1767718253647,-1000.0,0.00034564,14]
[400559784,1767718253657,-2069.70425158,0.00034568,36]
[400559785,1767718253667,-151.0,0.00034591,14]
[400559786,1767718253677,-151.43,0.00034593,60]
[400559787,1767718253687,-628.64163132,0.00034609,120]
[400559788,1767718253697,-173.03522826,0.00034623,60]
[400559789,1767718253708,-1509.32,0.00034624,60]
[400559790,1767718253719,-525556.70995541,0.0003465,4]
[400559791,1767718253835,-9240.0,0.0003465,4]
[400559792,1767718253847,-2017.72942744,0.0003465,4]
[400559793,1767718254080,-735.173477,0.000249,7]
[400559794,1767718254089,-62.27227028,0.000249,7]
[400559795,1767718254106,-88.72772972,0.000249,7]
[400559796,1767718254116,-735.173477,0.000249,7]
[400559797,1767718254125,-689.01057545,0.00027,7]
[400559798,1767718254269,-272.8580354,0.00017601,2]
[400559799,1767718254279,-151.0,0.000249,7]
[400559800,1767718254289,-151.0,0.000249,7]
[400559801,1767718254299,-151.0,0.000249,7]
[400559802,1767718254309,-151.0,0.000249,7]
[400559803,1767718254319,-151.0,0.000249,7]
[400559804,1767718254328,-46.16290155,0.00027,7]
[400559805,1767718254338,-151.0,0.00027,7]
[400559806,1767718254347,-735.173477,0.00027,7]
[400559807,1767718254358,-151.0,0.00027,7]
[400559808,1767718254367,-151.0,0.00027,7]
[400559809,1767718254376,-151.0,0.00027,7]
[400559810,1767718254385,-207.165934,0.00027,7]
[400559811,1767718254395,-735.173477,0.00029042,7]
[400559812,1767718254405,-151.0,0.00029042,7]
[400559813,1767718254415,-735.173477,0.00029042,7]
[400559814,1767718254426,-151.0,0.00029042,7]
[400559815,1767718254436,-269.991189,0.00029042,7]
[400559816,1767718254446,-151.0,0.00029042,7]
[400559817,1767718254455,-735.173477,0.00033,31]
[400559818,1767718254466,-151.0,0.00033,31]
[400559819,1767718254476,-735.173477,0.00033,31]
[400559820,1767718254485,-151.0,0.00033,31]
[400559821,1767718254495,-151.0,0.00033,31]
[400559822,1767718254505,-2073.32547844,0.0003465,4]
[400559823,1767718254588,-260.932,0.00018204,2]
[400559824,1767718254598,-2000.0,0.00019423,3]
[400559825,1767718254609,-151.0,0.00027,7]
[400559826,1767718254619,-6828.068,0.0003465,4]
[400559827,1767718254655,163.82,8.571e-05,2]
[400559828,1767718327310,-300.0,0.00013272,2]
[400559829,1767718327332,-59.30954112,0.00013273,2]
[400559830,1767718329353,-118.38596146,0.00013273,2]
[400559831,1767718329377,-199.95697701,0.00013273,2]
[400559832,1767718342369,-153.6883592,0.00012821,2]
[400559850,1767718383366,160.19,7.985e-05,2]
[400559851,1767718383813,186.89,8.292e-05,2]
[400559852,1767718384265,213.59,8.599e-05,2]
[400559853,1767718384543,-136.05977629,0.00012821,2]
[400559854,1767718384567,-101.02076139,0.00013047,2]
[400559855,1767718384698,240.28,8.906e-05,2]
[400559856,1767718385124,266.98,9.214e-05,2]
[400559859,1767718462902,-89.32654979,0.00013047,2]
[400559860,1767718462925,-65.87477205,0.00013272,2]
[400559861,1767718464322,-222.47987182,0.00013272,2]
[400559862,1767718522249,-300.0,0.00013272,2]
[400559863,1767718522274,-57.8291785,0.00013272,2]
[400559864,1767718526292,167.45,7.399e-05,2]
[400559865,1767718526746,188.38,7.663e-05,2]
[400559866,1767718527172,209.31,7.927e-05,2]
[400559867,1767718537321,-166.66666666,0.00013172,2]
[400559868,1767718537347,-333.33333334,0.00013272,2]
[400559869,1767718541374,-300.0,0.00013272,2]
[400559870,1767718544640,-311.46308135,0.00013272,2]
[400559871,1767718549535,-178.07,0.00013272,2]
[400559872,1767718551482,-157.17890079,0.00013139,2]
[400559873,1767718553355,-194.604636,0.00013139,2]
[400559874,1767718557541,-223.39986579,0.00013139,2]
[400559875,1767718559508,-197.98311419,0.00013139,2]
[400559876,1767718560900,-306.23836733,0.00013139,2]
[400559877,1767718565163,-32.05819725,0.00013139,2]
[400559878,1767718565186,-19.30440681,0.00013272,2]
[400559879,1767718565211,-114.09931585,0.00013272,2]
[400559880,1767718567099,-169.32352975,0.00013272,2]
[400559881,1767718568497,-16.5771544,0.00013272,2]
[400559882,1767718568519,-235.25906959,0.00013273,2]
[400559883,1767718570088,-64.7839534,0.00013273,2]
[400559884,1767718570111,-88.2860466,0.00013273,2]
[400559885,1767718571520,-183.5603008,0.00013273,2]
[400559886,1767718574613,-633.58331085,0.0001314,2]
[400559887,1767718577124,-205.74623607,0.0001314,2]
[400559888,1767718579118,-244.17662665,0.0001314,2]
[400559889,1767718583033,-526.67727149,0.0001314,2]
[400559890,1767718597783,-163.5832469,0.0001314,2]
[400559891,1767718597806,-6.47497222,0.00013273,2]
[400559892,1767718599295,-221.67868038,0.00013273,2]
[400559893,1767718599316,-112.74173386,0.00013273,2]
[400559894,1767718601274,-284.05749506,0.00013273,2]
[400559895,1767718605294,-103.20077108,0.00013273,2]
[400559896,1767718605314,-55.85922892,0.00013273,2]
[400559897,1767718607305,-350.03048662,0.00013273,2]
[400559898,1767718609337,-94.11028446,0.00013273,2]
[400559899,1767718609361,-397.50550006,0.00013273,2]
[400559900,1767718642278,-212.26647695,0.00012396,2]
[400559901,1767718645884,-348.52789711,0.00012396,2]
[400559902,1767718647470,-642.48941436,0.00012396,2]
[400559903,1767718650666,-342.87325689,0.00012396,2]
[400559904,1767718653771,-397.93058564,0.00012396,2]
[400559905,1767718656961,-653.60361348,0.00012396,2]
[400559906,1767718659104,-205.10608061,0.00012396,2]
[400559907,1767718660701,-478.15813753,0.00012396,2]
[400559908,1767718663176,-160.77133971,0.00012396,2]
[400559909,1767718664832,-315.35540131,0.00012396,2]
[400559910,1767718669863,-223.52483674,0.00012396,2]
[400559911,1767718672005,-155.84241914,0.00012396,2]
[400559912,1767718677066,-183.62973837,0.00012396,2]
[400559913,1767718679330,-173.31164079,0.00012396,2]
[400559914,1767718684792,-284.60954744,0.00012396,2]
[400559915,1767718686747,-151.06853535,0.00012396,2]
[400559916,1767718688729,-300.0,0.00012396,2]
[400559917,1767718691994,-200.12659503,0.00012396,2]
[400559918,1767718693719,-378.44058564,0.00012396,2]
[400559919,1767718696017,-233.93941436,0.00012396,2]
[400559920,1767718731615,167.08,6.744e-05,2]
[400559921,1767718732572,190.95,6.994e-05,2]
[400559922,1767718733071,214.82,7.243e-05,2]
[400559923,1767718733486,238.69,7.493e-05,2]
[400559924,1767718747262,-241.56786233,0.00012396,2]
[400559925,1767718822815,-408.26,0.00012272,2]
[400559928,1767718870280,152.68,6.853e-05,2]
[400559929,1767718870708,174.49,7.106e-05,2]
[400559930,1767718871224,196.3,7.36e-05,2]
[400559931,1767718871633,218.11,7.614e-05,2]
[400559932,1767718957862,-542.78154868,0.00012272,2]
[400559933,1767718972245,-184.56677848,0.00012272,2]
[400559934,1767718973879,-313.16377601,0.00012272,2]
[400559935,1767718987837,-356.59548877,0.00012272,2]
[400559936,1767719006565,150.77,6.386e-05,2]
[400559937,1767719006983,180.92,6.641e-05,2]
[400559938,1767719007422,211.08,6.897e-05,2]
[400559939,1767719007851,241.23,7.152e-05,2]
[400559940,1767719008773,271.39,7.407e-05,2]
[400559941,1767719009199,301.54,7.663e-05,2]
[400559942,1767719009305,-205.14083363,0.00012272,2]
[400559947,1767719092249,-180.74,0.00012396,2]
[400559948,1767719137278,-310.90151609,0.00012144,2]
[400559949,1767719141547,-190.24748996,0.00012144,2]
[400559950,1767719143143,-351.56541015,0.00012144,2]
[400559951,1767719149632,152.26,6.889e-05,2]
[400559952,1767719150071,174.02,7.144e-05,2]
[400559953,1767719150512,195.77,7.4e-05,2]
[400559954,1767719151436,217.52,7.655e-05,2]
[400559955,1767719174096,155.0,5.98e-05,2]
[400559978,1767719261284,500.0,9.275e-05,2]
[400559979,1767719280610,195.6,5.974e-05,2]
[400559980,1767719280920,195.59,5.974e-05,2]
[400559981,1767719283510,1000.59117297,5e-05,2]
[400559982,1767719317318,-208.23196804,0.00012023,2]
[400560031,1767719432479,-200.72825673,0.00012084,2]
[400560033,1767719432489,-285.58491022,0.00012084,2]
[400560035,1767719432501,-304.41508978,0.00012084,2]
[400560037,1767719432510,-47.8322243,0.00012144,2]
[400560038,1767719432520,-593.22126574,0.0001239,2]
[400560039,1767719432535,-278.01,0.0001239,2]
[400560064,1767719438462,-1120.18290796,0.0001239,2]
[400560066,1767719438474,-3716.85662122,0.00012396,2]
[400560068,1767719438484,-300.0,0.00012605,2]
[400560070,1767719438494,-1200.0,0.00012605,2]
[400560072,1767719438504,-4584.5617316,0.00012606,2]
[400560074,1767719438514,-1267.05907511,0.00012857,2]
[400560075,1767719438524,-300.0,0.00012857,2]
[400560076,1767719438534,-300.0,0.00012857,2]
[400560078,1767719438545,-300.0,0.00012857,2]
[400560079,1767719438555,-300.0,0.00012857,2]
[400560080,1767719438565,-300.0,0.00012857,2]
[400560081,1767719438575,-300.0,0.00012857,2]
[400560082,1767719438585,-300.0,0.00012857,2]
[400560083,1767719438595,-300.0,0.00012857,2]
[400560084,1767719438605,-300.0,0.00012857,2]
[400560085,1767719438615,-300.0,0.00012857,2]
[400560086,1767719438624,-300.0,0.00012857,2]
[400560087,1767719438635,-300.0,0.00012857,2]
[400560088,1767719438644,-300.0,0.00012857,2]
[400560089,1767719438654,-300.0,0.00012857,2]
[400560090,1767719438664,-300.0,0.00012857,2]
[400560091,1767719438674,-720402.61738872,0.00013173,2]
[400560105,1767719441447,-3e-08,0.00013173,2]
[400560106,1767719441458,-3811.53365912,0.00013173,2]
[400560120,1767719444968,-487.61982066,0.00013173,2]
[400560121,1767719444981,-7146.35677626,0.00013173,2]
[400560122,1767719444992,-29621.87804183,0.00013173,2]
[400560133,1767719446664,-1543.21631667,0.00013173,2]
[400560134,1767719447741,-236986.77799671,0.00013173,2]
[400560135,1767719447751,-500.0,0.00013248,2]
[400560136,1767719447760,-500.0,0.00013248,2]
[400560137,1767719447770,-500.0,0.00013248,2]
[400560138,1767719447780,-500.0,0.00013248,2]
[400560139,1767719447790,-500.0,0.00013248,2]
[400560140,1767719447800,-500.0,0.00013248,2]
[400560141,1767719447810,-500.0,0.00013248,2]
[400560142,1767719447820,-500.0,0.00013248,2]
[400560143,1767719447830,-500.0,0.00013248,2]
[400560144,1767719447839,-189.40129106,0.00013248,2]
[400560145,1767719447848,-500.0,0.00013248,2]
[400560146,1767719447858,-500.0,0.00013248,2]
[400560147,1767719447867,-500.0,0.00013248,2]
[400560148,1767719447877,-319.61448256,0.00013248,2]
[400560149,1767719447886,-500.0,0.00013248,2]
[400560150,1767719447896,-500.0,0.00013248,2]
[400560151,1767719447906,-300.0,0.00013248,2]
[400560152,1767719447916,-500.0,0.00013248,2]
[400560153,1767719447926,-279.40221758,0.00013248,2]
[400560154,1767719447936,-4534.18382176,0.00013249,2]
[400560155,1767719447946,-500.0,0.00013273,2]
[400560156,1767719447956,-161.07735711,0.00013273,2]
[400560157,1767719447965,-500.0,0.00013273,2]
[400560158,1767719447977,-500.0,0.00013273,2]
[400560159,1767719447986,-500.0,0.00013273,2]
[400560160,1767719447995,-500.0,0.00013273,2]
[400560161,1767719448004,-500.0,0.00013273,2]
[400560162,1767719448014,-500.0,0.00013273,2]
[400560163,1767719448023,-500.0,0.00013273,2]
[400560164,1767719448034,-500.0,0.00013273,2]
[400560165,1767719448043,-500.0,0.00013273,2]
[400560166,1767719448052,-502.74191272,0.00013273,2]
[400560167,1767719448062,-500.0,0.00013273,2]
[400560168,1767719448071,-500.0,0.00013273,2]
[400560169,1767719448080,-500.0,0.00013273,2]
[400560170,1767719448090,-501.72997305,0.00013273,2]
[400560171,1767719448099,-500.0,0.00013273,2]
[400560172,1767719448109,-507.846766,0.00013273,2]
[400560173,1767719448118,-500.0,0.00013273,2]
[400560174,1767719448128,-501.7117257,0.00013273,2]
[400560175,1767719448138,-501.73984086,0.00013273,2]
[400560176,1767719448148,-500.0,0.00013273,2]
[400560177,1767719448160,-242.486,0.00013299,2]
[400560178,1767719448170,-711.39952114,0.000133,2]
[400560179,1767719448179,-151.0,0.000134,2]
[400560180,1767719448189,-151.0,0.000134,2]
[400560181,1767719448199,-151.0,0.000134,2]
[400560182,1767719448208,-151.0,0.000134,2]
[400560183,1767719448218,-151.0,0.000134,2]
[400560184,1767719448229,-151.0,0.000134,2]
[400560185,1767719448238,-151.0,0.000134,2]
[400560186,1767719448248,-151.0,0.000134,2]
[400560187,1767719448257,-151.0,0.000134,2]
[400560188,1767719448266,-151.0,0.000134,2]
[400560189,1767719448276,-151.0,0.000134,2]
[400560190,1767719448286,-151.0,0.000134,2]
[400560191,1767719448296,-151.0,0.000134,2]
[400560192,1767719448306,-151.0,0.000134,2]
[400560193,1767719448315,-600.0,0.00013512,2]
[400560194,1767719448325,-711.39952111,0.00013679,2]
[400560195,1767719448334,-500.0,0.00013698,2]
[400560196,1767719448343,-382.8339174,0.00013698,2]
[400560197,1767719448353,-1000.0,0.00013698,2]
[400560198,1767719448363,-1000.0,0.00013698,2]
[400560199,1767719448372,-1000.0,0.00013698,2]
[400560200,1767719448382,-1000.0,0.00013698,2]
[400560201,1767719448391,-1000.0,0.00013698,2]
[400560202,1767719448401,-1000.0,0.00013698,2]
[400560203,1767719448411,-1000.0,0.00013698,2]
[400560204,1767719448420,-1015.00844165,0.00013698,2]
[400560205,1767719448430,-833.08,0.00013698,2]
[400560206,1767719448440,-833.08,0.00013698,2]
[400560207,1767719448450,-833.08,0.00013698,2]
[400560208,1767719448460,-833.08,0.00013698,2]
[400560209,1767719448469,-833.08,0.00013698,2]
[400560210,1767719448484,-833.08,0.00013698,2]
[400560211,1767719448494,-833.08,0.00013698,2]
[400560212,1767719448503,-833.08,0.00013698,2]
[400560213,1767719448512,-833.08,0.00013698,2]
[400560214,1767719448522,-833.08,0.00013698,2]
[400560215,1767719448531,-833.08,0.00013698,2]
[400560216,1767719448540,-833.08,0.00013698,2]
[400560217,1767719448550,-833.08,0.00013698,2]
[400560218,1767719448560,-500.0,0.00013698,2]
[400560219,1767719448570,-500.0,0.00013698,2]
[400560220,1767719448579,-500.0,0.00013698,2]
[400560221,1767719448588,-500.0,0.00013698,2]
[400560222,1767719448598,-525.39041096,0.00013698,2]
[400560223,1767719448608,-1106.3,0.00013698,2]
[400560224,1767719448617,-1106.3,0.00013698,2]
[400560225,1767719448627,-1106.3,0.00013698,2]
[400560226,1767719448638,-1106.3,0.00013698,2]
[400560227,1767719448647,-1106.3,0.00013698,2]
[400560228,1767719448656,-1106.3,0.00013698,2]
[400560229,1767719448665,-1106.3,0.00013698,2]
[400560230,1767719448675,-1106.3,0.00013698,2]
[400560231,1767719448685,-1106.3,0.00013698,2]
[400560232,1767719448695,-1106.3,0.00013698,2]
[400560233,1767719448705,-1106.3,0.00013698,2]
[400560234,1767719448714,-1106.3,0.00013698,2]
[400560235,1767719448723,-1106.3,0.00013698,2]
[400560236,1767719448734,-500.0,0.00013698,2]
[400560237,1767719448743,-500.0,0.00013698,2]
[400560238,1767719448753,-500.0,0.00013698,2]
[400560239,1767719448763,-500.0,0.00013698,2]
[400560240,1767719448772,-500.0,0.00013698,2]
[400560241,1767719448781,-500.0,0.00013698,2]
[400560242,1767719448791,-500.0,0.00013698,2]
[400560243,1767719448800,-500.0,0.00013698,2]
[400560244,1767719448810,-472.44012806,0.00013698,2]
[400560245,1767719448819,-513.04283332,0.00013698,2]
[400560246,1767719448828,-500.0,0.00013698,2]
[400560247,1767719448837,-500.0,0.00013698,2]
[400560248,1767719448846,-500.0,0.00013698,2]
[400560249,1767719448856,-500.0,0.00013698,2]
[400560250,1767719448865,-500.0,0.00013698,2]
[400560251,1767719448875,-500.0,0.00013698,2]
[400560252,1767719448884,-500.0,0.00013698,2]
[400560253,1767719448894,-500.0,0.00013698,2]
[400560254,1767719448903,-500.0,0.00013698,2]
[400560255,1767719448913,-500.0,0.00013698,2]
[400560256,1767719448922,-500.0,0.00013698,2]
[400560257,1767719448931,-448.193567,0.00013698,2]
[400560258,1767719448941,-465.02200056,0.00013698,2]
[400560259,1767719448950,-220.37131177,0.00013699,2]
[400560260,1767719448959,-500.73320513,0.00013699,2]
[400560261,1767719448969,-500.86295152,0.00013699,2]
[400560262,1767719448979,-500.85765138,0.00013699,2]
[400560263,1767719448990,-501.64231058,0.00013699,2]
[400560264,1767719449000,-501.23587401,0.00013699,2]
[400560265,1767719449009,-410.744111,0.00013699,2]
[400560266,1767719449019,-500.54648237,0.00013699,2]
[400560267,1767719449029,-501.57510488,0.00013699,2]
[400560268,1767719449038,-500.60483179,0.00013699,2]
[400560269,1767719449049,-500.73288358,0.00013699,2]
[400560270,1767719449058,-500.0,0.00013699,2]
[400560271,1767719449067,-565.96268901,0.00013699,2]
[400560272,1767719449076,-500.59370123,0.00013699,2]
[400560273,1767719449086,-500.65442518,0.00013699,2]
[400560274,1767719449095,-500.92020919,0.00013699,2]
[400560275,1767719449105,-501.13869568,0.00013699,2]
[400560276,1767719449114,-500.76727011,0.00013699,2]
[400560277,1767719449123,-501.04423764,0.00013699,2]
[400560278,1767719449132,-500.0,0.00013699,2]
[400560279,1767719449141,-500.0,0.00013699,2]
[400560280,1767719449150,-501.07709958,0.00013699,2]
[400560281,1767719449162,-500.0,0.00013699,2]
[400560282,1767719449171,-500.0,0.00013699,2]
[400560283,1767719449180,-500.6911085,0.00013699,2]
[400560284,1767719449190,-501.19127842,0.00013699,2]
[400560285,1767719449201,-500.0,0.00013699,2]
[400560286,1767719449211,-160.98698718,0.00013699,2]
[400560287,1767719449221,-500.0,0.00013699,2]
[400560288,1767719449232,-500.0,0.00013699,2]
[400560289,1767719449241,-500.0,0.00013699,2]
[400560290,1767719449250,-500.0,0.00013699,2]
[400560291,1767719449259,-500.0,0.00013699,2]
[400560292,1767719449269,-912.79,0.00013721,2]
[400560293,1767719449278,-501.73341941,0.00013821,2]
[400560294,1767719449287,-1000.0,0.00013821,2]
[400560295,1767719449297,-501.21950911,0.00013821,2]
[400560296,1767719449306,-504.3899978,0.00013821,2]
[400560297,1767719449316,-1063.51122332,0.00013821,2]
[400560298,1767719449325,-990.59981641,0.00013821,2]
[400560299,1767719449335,-564.14853486,0.00013821,2]
[400560300,1767719449344,-395.29943272,0.00013821,2]